Workbook

Sheet Clinical Trials Hist Req
B1: Clinical Trial Histology Service Request
B2: MUSC Department of Pathology and Laboratory Medicine
B4: THIS SECTION TO BE COMPLETED BY REQUESTOR
C6: Protocol Title: | M6: Request Date:
C7: Sponsor: | H7: Protocol #: | J7: IRB#: | L7: CTO# (HCC studies):
C9: PI Name: | I9: PI Dept: | M9: PI Phone:
C10: Study Coord Name: | I10: Study Coord E-mail: | M10: Study Coord Phone/Pager:
C13: Special Instructions: | M13: Study Type:
M14: Non-Corporate
C18: THIS SECTION TO BE COMPLETED BY HISTOLOGY
C19: Service | K19: Unit | L19: # Units | M19: Unit Cost | N19: Total Charge
C20: Tissue Preparation
C21: Tissue prep and embed in paraffin | K21: Block | M21: =IF($M$14="Corporate",+'Service Cost Sheet'!O8,+'Service Cost Sheet'!L8) -> 12.84 | N21: =L21*M21 -> 0
C22: Tissue prep and embed in OCT | K22: Block | M22: =IF($M$14="Corporate",+'Service Cost Sheet'!O10,+'Service Cost Sheet'!L10) -> 12.91333333 | N22: =L22*M22 -> 0
C23: Cut and mount Paraffin/OCT section on slide | K23: Slide | M23: =IF($M$14="Corporate",+'Service Cost Sheet'!O11,+'Service Cost Sheet'!L11) -> 3.75 | N23: =L23*M23 -> 0
C24: Block recut/facing charge | K24: Block | M24: =IF($M$14="Corporate",+'Service Cost Sheet'!O12,+'Service Cost Sheet'!L12) -> 3.916666667 | N24: =L24*M24 -> 0
C25: Thick, Scroll or Punch section for RNA/DNA analysis | K25: Slide | M25: =IF($M$14="Corporate",+'Service Cost Sheet'!O13,+'Service Cost Sheet'!L13) -> 23.5 | N25: =L25*M25 -> 0
C26: Staining
C27: Hematoxylin and eosin (H & E) | K27: Slide | M27: =IF($M$14="Corporate",+'Service Cost Sheet'!O15,+'Service Cost Sheet'!L15) -> 1.803333333 | N27: =L27*M27 -> 0
C28: Immunostain (labor cost per batch + unit cost per slide) | H28: # Batches: | I28: Labor cost per batch: | J28: =(IF($M$14="Corporate",'Service Cost Sheet'!$G$17,'Service Cost Sheet'!$G$16)) -> 188 | K28: Slide | M28: =IF($M$14="Corporate",+'Service Cost Sheet'!O16,+'Service Cost Sheet'!L16) -> 3.05 | N28: =IF(L28>0,((L28*M28)+(J28*H29)),0) -> 0
H29: 1
C30: Special Stains | H30: Periodic Acid Schiff | K30: Slide | M30: =IF($M$14="Corporate",+'Service Cost Sheet'!O18,+'Service Cost Sheet'!L18) -> 6.07 | N30: =L30*M30 -> 0
H31: Oil Red O | K31: Slide | M31: =IF($M$14="Corporate",+'Service Cost Sheet'!O19,+'Service Cost Sheet'!L19) -> 5.53 | N31: 0
H32: Picro Sirus Red | K32: Slide | M32: =IF($M$14="Corporate",+'Service Cost Sheet'!O20,+'Service Cost Sheet'!L20) -> 5.53 | N32: 0
H33: Luxol Fast Blue | K33: Slide | M33: =IF($M$14="Corporate",+'Service Cost Sheet'!O21,+'Service Cost Sheet'!L21) -> 6.313333333 | N33: 0
H34: Massons Trichrome | K34: Slide | M34: =IF($M$14="Corporate",+'Service Cost Sheet'!O22,+'Service Cost Sheet'!L22) -> 10.20333333 | N34: 0
H35: Bielschowski | K35: Slide | M35: =IF($M$14="Corporate",+'Service Cost Sheet'!O23,+'Service Cost Sheet'!L23) -> 11.09333333 | N35: 0
C36: Other: | K36: Slide | M36: =IF($M$14="Corporate",+'Special Stains Cost Sheet'!A6*3,+'Special Stains Cost Sheet'!A6) -> 0 | N36: 0 | P36: >>>>To enter unit cost for other stains: | Q36: Go to Special Stains Cost Sheet | R36: (Lab personnel use only.)
C37: Other Services
C38: Block/Slide retrieval from archive | I38: Hourly Rate: | J38: =+IF($M$14="Corporate",'Service Cost Sheet'!$K$5*3,'Service Cost Sheet'!$K$5) -> 47 | K38: Minutes | M38: =+J38/60 -> 0.7833333333 | N38: =L38*M38 -> 0
C39: Other technical assistance | I39: Hourly Rate: | J39: =+IF($M$14="Corporate",'Service Cost Sheet'!$K$5*3,'Service Cost Sheet'!$K$5) -> 47 | K39: Minutes | M39: =+J39/60 -> 0.7833333333 | N39: 0
C40: Other administrative assistance (IRB paperwork, report searches, etc .) | I40: Hourly Rate: | J40: =+IF($M$14="Corporate",'Service Cost Sheet'!$K$5*3,'Service Cost Sheet'!$K$5) -> 47 | K40: Minutes | M40: 0.7833333333 | N40: 0
C41: Pathologist Review | K41: Flat Fee | M41: =IF($M$14="Corporate",+'Service Cost Sheet'!O34,+'Service Cost Sheet'!L34) -> 100 | N41: 0
C42: Expedited pathology review for clinical trials | K42: Flat Fee | M42: =IF($M$14="Corporate",+'Service Cost Sheet'!O35,+'Service Cost Sheet'!L35) -> 100 | N42: 0
C43: Other Svc: | N43: 0
C44: Total | N44: =+SUM(N21:N25)+SUM(N27:N36)+SUM(N38:N43) -> 0
C45: Discount %
C46: TOTAL COST PER PATIENT: | N46: =IF(N45>0,N44*(1-N45),N44) -> 0
B48: Submit this form to: Histochemical Core Lab Phone: 792-5648 • Fax: 792-4157 • email: histocore@musc.edu

Sheet Document Attachment
A4: To print or edit document after inserting, right-click on document then choose 'Document Object>Open'. The document will open in it's original application (Word, etc.) where you can edit or print.

Sheet Service Cost Sheet (hidden)
A1: Research Histology Laboratory Cost Sheet
A2: MUSC Department of Pathology and Laboratory Medicine | AA2: X
H3: Unit | I3: Technical Time/unit (minutes) | J3: Non-Corporate Rate | M3: Corporate Rate
A4: Service | I4: Technical Time | J4: Base Rate per unit | K4: Tech Fee per unit | L4: Total | M4: Base Rate per unit | N4: Tech. Time | O4: Total
J5: Hourly rate: | K5: 47 | M5: Hourly rate: | N5: =+K5*3 -> 141
A7: Tissue Preparation
A8: Tissue prep, face and embed in paraffin | H8: Block | I8: 15 | J8: 1.09 | K8: =+I8/60*$K$5 -> 11.75 | L8: =+J8+K8 -> 12.84 | M8: =+J8*3 -> 3.27 | N8: 35.25 | O8: =+M8+N8 -> 38.52
A9: Cut and mount paraffin section on slide | H9: Slide | I9: 3 | J9: 1.4 | K9: 2.35 | L9: =+J9+K9 -> 3.75 | M9: 4.2 | N9: 7.05 | O9: 11.25
A10: Tissue prep, face and embed in OCT | H10: Block | I10: 13 | J10: 2.73 | K10: 10.18333333 | L10: 12.91333333 | M10: 8.19 | N10: 30.55 | O10: 38.74
A11: Cut and mount OCT section on slide | H11: Slide | I11: 3 | J11: 1.4 | K11: 2.35 | L11: 3.75 | M11: 4.2 | N11: 7.05 | O11: 11.25
A12: Block recut/facing charge | H12: Block | I12: 5 | J12: 0 | K12: 3.916666667 | L12: 3.916666667 | M12: 0 | N12: 11.75 | O12: 11.75
A13: Thick Section for RNA/DNA Analysis | H13: Slide | I13: 30 | J13: 0 | K13: =+I13/60*$K$5 -> 23.5 | L13: =+J13+K13 -> 23.5 | M13: 0 | N13: 70.5 | O13: =+M13+N13 -> 70.5
A14: Staining
A15: Hematoxylin and eosin (H & E) | H15: Slide | I15: 1 | J15: 1.02 | K15: =+I15/60*$K$5 -> 0.7833333333 | L15: =+J15+K15 -> 1.803333333 | M15: =+J15*3 -> 3.06 | N15: =+K15*3 -> 2.35 | O15: =+M15+N15 -> 5.41
A16: Immunostain (labor cost per batch + unit cost per slide) | F16: Labor cost per batch Non-Corp: | G16: =+K5*4 -> 188 | H16: Slide | I16: 4 hrs/batch | J16: 3.05 | L16: 3.05 | M16: =+J16*3 -> 9.15 | O16: 9.15
F17: Labor cost per batch Corporate: | G17: =+N5*4 -> 564
A18: Special Stains | E18: Periodic Acid Schiff | H18: Slide | I18: 6 | J18: 1.37 | K18: 4.7 | L18: 6.07 | M18: =+J18*3 -> 4.11 | N18: 14.1 | O18: 18.21
E19: Oil Red O | H19: Slide | I19: 6 | J19: 0.83 | K19: 4.7 | L19: 5.53 | M19: 2.49 | N19: 14.1 | O19: 16.59
E20: Picro Sirus Red | H20: Slide | I20: 6 | J20: 0.83 | K20: 4.7 | L20: 5.53 | M20: 2.49 | N20: 14.1 | O20: 16.59
E21: Luxol Fast Blue | H21: Slide | I21: 7 | J21: 0.83 | K21: 5.483333333 | L21: 6.313333333 | M21: 2.49 | N21: 16.45 | O21: 18.94
E22: Massons Trichrome | H22: Slide | I22: 10 | J22: 2.37 | K22: 7.833333333 | L22: 10.20333333 | M22: 7.11 | N22: 23.5 | O22: 30.61
E23: Bielschowski | H23: Slide | I23: 10 | J23: 3.26 | K23: 7.833333333 | L23: 11.09333333 | M23: 9.78 | N23: 23.5 | O23: 33.28
A24: Other Special Stains (using average special stains supply cost + labor cost/unit) - enter approx # of minutes per slide | H24: Slide | J24: 1.76 | K24: =+I24/60*$K$5 -> 0 | L24: =+J24+K24 -> 1.76 | M24: 5.28 | N24: 0 | O24: 5.28
A28: Other Services
A29: Service | H29: Unit | J29: Total Non-Corporate Rate | M29: Total Corporate Rate
A30: Block retrieval from archive | H30: Minutes | J30: Hourly rate | L30: =+$K$5 -> 47 | M30: Hourly rate | O30: =+$N$5 -> 141
A31: Slide retrieval from archive | H31: Minutes | J31: Hourly rate | L31: =+$K$5 -> 47 | M31: Hourly rate | O31: =+$N$5 -> 141
A32: Other technical assistance | H32: Minutes | J32: Hourly rate | L32: 47 | M32: Hourly rate | O32: 141
A33: Other administrative assistance (IRB paperwork, report searches, etc ) | H33: Minutes | J33: Hourly rate | L33: 47 | M33: Hourly rate | O33: 141
A34: Pathologist Review | H34: Each | J34: Flat Fee | L34: 100 | M34: Flat Fee | O34: =100*3 -> 300
A35: Expedited pathology review for clinical trials | H35: Each | J35: Flat Fee | L35: 100 | M35: Flat Fee | O35: =100*3 -> 300
A36: Other Svc: | H36: Variable | J36: Hourly rate per unit + supply cost per unit | M36: <<< Non-Corporate Rate x3

Sheet Special Stains Cost Sheet
E2: Special Stains | K2: Technical Time/unit (minutes) | L2: Non-Corporate Rate
L3: Avg Supply Cost | M3: Labor Calculation | N3: Total Cost/Unit
A4: Enter Other Special Stains Unit Cost here:
E5: Other Special Stains - enter approx # of minutes per slide | L5: ='Service Cost Sheet'!J24 -> 1.76 | M5: =+K5/60*'Service Cost Sheet'!$K$5 -> 0 | N5: =IF(K5>0,+L5+M5,0) -> 0
B6: > | C6: Use table to the right to help determine unit cost by either: 1- entering approx. # of minutes per slide and using calculated cost (in red cell) OR 2- using cost of a comparable stain in list
E7: Periodic Acid Schiff | N7: =+'Service Cost Sheet'!L18 -> 6.07
E8: Oil Red O | N8: =+'Service Cost Sheet'!L19 -> 5.53
E9: Picro Sirus Red | N9: =+'Service Cost Sheet'!L20 -> 5.53
E10: Luxol Fast Blue | N10: =+'Service Cost Sheet'!L21 -> 6.313333333
E11: Massons Trichrome | N11: =+'Service Cost Sheet'!L22 -> 10.20333333
E12: Bielschowski | N12: =+'Service Cost Sheet'!L23 -> 11.09333333
A14: Return to Clinical Trials Hist Request Form

Sheet Lists (hidden)
A1: Block | C1: Corporate
A2: Slide | C2: Non-Corporate
A3: Minutes
A4: Flat Fee
A5: Each

Sheet Price List (hidden)
A1: Histology Price List
A2: Service | H2: Unit | I2: Technical Time/unit (minutes) | J2: Federal Rate | M2: Corporate Rate
I3: Technical Time | J3: Base Rate per unit | K3: Tech Fee per unit | L3: Total Fee/Unit | M3: Base Rate per unit | N3: Tech. Time | O3: Total Fee/Unit
J4: Hourly rate: | K4: 47 | M4: Hourly Rate | N4: =+K4*3 -> 141
A5: Tissue Preparation
A6: Tissue prep, face and embed in paraffin | H6: Block | I6: 15 | J6: 1.09 | K6: =+I6/60*$K$4 -> 11.75 | L6: =+J6+K6 -> 12.84 | M6: =+J6*3 -> 3.27 | N6: 35.25 | O6: =+M6+N6 -> 38.52
A7: Cut and mount paraffin section on slide | H7: Slide | I7: 3 | J7: 1.4 | K7: =+I7/60*$K$4 -> 2.35 | L7: =+J7+K7 -> 3.75 | M7: 4.2 | N7: 7.05 | O7: 11.25
A8: Tissue prep, face and embed in OCT | H8: Block | I8: 13 | J8: 2.73 | K8: 10.18333333 | L8: 12.91333333 | M8: 8.19 | N8: 30.55 | O8: 38.74
A9: Cut and mount OCT section on slide | H9: Slide | I9: 3 | J9: 1.4 | K9: 2.35 | L9: 3.75 | M9: 4.2 | N9: 7.05 | O9: 11.25
A10: Block recut/facing charge | H10: Block | I10: 5 | K10: 3.916666667 | L10: 3.916666667 | M10: 0 | N10: 11.75 | O10: 11.75
A11: Thick Section for RNA/DNA Analysis | H11: Slide | I11: 30 | K11: 23.5 | L11: 23.5 | M11: 0 | N11: 70.5 | O11: 70.5
A12: Staining
A13: Hematoxylin and eosin (H & E) | H13: Slide | I13: 1 | J13: 1.02 | K13: =+I13/60*$K$4 -> 0.7833333333 | L13: =+J13+K13 -> 1.803333333 | M13: =+J13*3 -> 3.06 | N13: =+K13*3 -> 2.35 | O13: =+M13+N13 -> 5.41
A14: Immunostain (Base rate/slide plus labor cost per batch) | H14: # Slides + # Batches | I14: n/a | J14: 3.05 | K14: $188/batch | L14: $3.05 + Labor$ /batch | M14: =+J14*3 -> 9.15 | N14: $564/batch | O14: $9.15 + Labor$ /batch
A15: Special Stains | E15: Periodic Acid Schiff | H15: Slide | I15: 6 | J15: 1.37 | K15: =+I15/60*$K$4 -> 4.7 | L15: 6.07 | M15: =+J15*3 -> 4.11 | N15: =+K15*3 -> 14.1 | O15: 18.21
E16: Oil Red O | H16: Slide | I16: 6 | J16: 0.83 | K16: 4.7 | L16: 5.53 | M16: 2.49 | N16: 14.1 | O16: 16.59
E17: Picro Sirus Red | H17: Slide | I17: 6 | J17: 0.83 | K17: 4.7 | L17: 5.53 | M17: 2.49 | N17: 14.1 | O17: 16.59
E18: Luxol Fast Blue | H18: Slide | I18: 7 | J18: 0.83 | K18: 5.483333333 | L18: 6.313333333 | M18: 2.49 | N18: 16.45 | O18: 18.94
E19: Massons Trichrome | H19: Slide | I19: 10 | J19: 2.37 | K19: 7.833333333 | L19: 10.20333333 | M19: 7.11 | N19: 23.5 | O19: 30.61
E20: Bielschowski | H20: Slide | I20: 10 | J20: 3.26 | K20: 7.833333333 | L20: 11.09333333 | M20: 9.78 | N20: 23.5 | O20: 33.28
E21: Other Special Stains | H21: Slide | I21: variable | J21: variable | K21: $47/hr | L21: Materials+Tech Time | M21: variable | N21: $141/hr | O21: Materials+ Tech Time
A22: Other Services
A23: Block retrieval from archive | H23: Minutes | I23: variable | K23: $47/hr | L23: =+K23 -> $47/hr | N23: $141/hr | O23: $141/hr
A24: Slide retrieval from archive | H24: Minutes | I24: variable | K24: $47/hr | L24: =+K24 -> $47/hr | N24: $141/hr | O24: $141/hr
A25: Other technical assistance | H25: Minutes | I25: variable | K25: $47/hr | L25: $47/hr | N25: $141/hr | O25: $141/hr
A26: Other administrative assistance (IRB paperwork, report searches, etc - @ $47 hrly rate) | H26: Minutes | I26: variable | K26: $47/hr | L26: $47/hr | N26: $141/hr | O26: $141/hr
A27: Pathologist Review | H27: Flat Fee | L27: 100 | O27: =100*3 -> 300
A28: Expedited pathology review for clinical trials | H28: Flat Fee | L28: 100 | O28: =100*3 -> 300
